{"text_format":"3","workbook":"xlsx","n_sheets":4,"sheets":["Aloitus","PROJEKTIPARAMETRIT","PROJEKTIN TIEDOT","PROJEKTIN SUMMAT"],"not_rendered":{"charts":2,"defined_names":3,"pivot_tables":1},"read":"whole","date_system":"1900"}

{"sheet":"Aloitus","index":0,"n_rows":8,"n_cols":2,"rows_kept":8}
[null,"TIETOJA TÄSTÄ MALLISTA"]
[]
[null,"Tämän työkirjan avulla voit seurata projektiparametrit, projektin tietoja ja projektin summia, kun käynnissä on Projektisuunnitelma asianajotoimistoille."]
[null,"Kirjoita yrityksen nimi Projektiparametrit-laskentataulukkoon, niin se päivittyy automaattisesti muihin laskentataulukkoihin."]
[null,"Päivitä pylväskaaviot kirjoittamalla tietoja Projektiparametrit-laskentataulukkoon ja Projektin tiedot-laskentataulukkoon. Projektin summat -laskentataulukon Pivot-taulukko päivittyy automaattisesti."]
[null,"Huomautus:  "]
[null,"Kunkin laskentataulukon sarakkeessa A annetaan lisäohjeita. Tämä teksti on piilotettu tarkoituksella. Jos haluat poistaa tekstin, valitse sarake A ja valitse sitten POISTA. Jos haluat tuoda tekstin näkyviin, valitse sarake A ja muuta sitten fonttiväriä."]
[null,"Jos haluat lisätietoja laskentataulukoissa olevista taulukoista, paina taulukossa VAIHTO ja sitten F10, valitse TAULUKKO-vaihtoehto ja valitse sitten VAIHTOEHTOINEN TEKSTI. Projektin summat -laskentataulukon Pivot-taulukkoa varten paina VAIHTO ja sitten F10 taulukon sisällä, valitse PIVOT-TAULUKON ASETUKSET ja valitse sitten VAIHTOEHTOINEN TEKSTI -välilehti."]

{"sheet":"PROJEKTIPARAMETRIT","index":1,"n_rows":19,"n_cols":9,"rows_kept":19}
["Luo Projektiparametrit tähän laskentataulukkoon. Kirjoita yrityksen nimi oikeanpuoleiseen soluun. Tämän sarakkeen soluissa on hyödyllisiä ohjeita.","Yrityksen nimi"]
["Tämän laskentataulukon otsikko on solussa oikealla.","Projektisuunnitelma asianajotoimistoille"]
["Luottamuksellisuusviesti on solussa oikealla.",{"$f":"B1&\" luottamuksellinen\"","v":"Yrityksen nimi luottamuksellinen"}]
["Vihje on solussa oikealla.","Varjostetut solut lasketaan puolestasi. Sinun ei tarvitse kirjoittaa niihin mitään."]
["Kirjoita tiedot Parametrit-taulukkoon alkaen oikealla olevasta solusta. Seuraava ohje on solussa A12.","PROJEKTITYYPPI","YLEINEN KUMPPANI","YRITYSLAKIMIES","PUOLUSTUKSEN ASIANAJAJA","IMMATERIAALIOIKEUKSIEN ASIANAJAJA","KONKURSSIASIANAJAJA","JÄRJESTELMÄNVALVOJA (HENKILÖKUNTA)","SUMMA"]
[null,"Liikeyrityksen liittäminen",{"v":0.1,"d":"10%"},{"v":0.4,"d":"40%"},{"v":0,"d":"0%"},{"v":0,"d":"0%"},{"v":0,"d":"0%"},{"v":0.5,"d":"50%"},{"$f":"SUM(Parametrit[[#This Row],[YLEINEN KUMPPANI]:[JÄRJESTELMÄNVALVOJA (HENKILÖKUNTA)]])","v":{"v":1,"d":"100%"}}]
[null,"Liikeyrityksen yritysosto",{"v":0.1,"d":"10%"},{"v":0.4,"d":"40%"},{"v":0,"d":"0%"},{"v":0.1,"d":"10%"},{"v":0,"d":"0%"},{"v":0.4,"d":"40%"},{"$f":"SUM(Parametrit[[#This Row],[YLEINEN KUMPPANI]:[JÄRJESTELMÄNVALVOJA (HENKILÖKUNTA)]])","v":{"v":1,"d":"100%"}}]
[null,"Tuotteen vastuunalaisuuspuolustus",{"v":0.2,"d":"20%"},{"v":0,"d":"0%"},{"v":0.5,"d":"50%"},{"v":0,"d":"0%"},{"v":0,"d":"0%"},{"v":0.3,"d":"30%"},{"$f":"SUM(Parametrit[[#This Row],[YLEINEN KUMPPANI]:[JÄRJESTELMÄNVALVOJA (HENKILÖKUNTA)]])","v":{"v":1,"d":"100%"}}]
[null,"Patenttihakemus",{"v":0.1,"d":"10%"},{"v":0,"d":"0%"},{"v":0,"d":"0%"},{"v":0.6,"d":"60%"},{"v":0,"d":"0%"},{"v":0.3,"d":"30%"},{"$f":"SUM(Parametrit[[#This Row],[YLEINEN KUMPPANI]:[JÄRJESTELMÄNVALVOJA (HENKILÖKUNTA)]])","v":{"v":1,"d":"100%"}}]
[null,"Työntekijän oikeudenkäynti",{"v":0.2,"d":"20%"},{"v":0.1,"d":"10%"},{"v":0.4,"d":"40%"},{"v":0,"d":"0%"},{"v":0,"d":"0%"},{"v":0.3,"d":"30%"},{"$f":"SUM(Parametrit[[#This Row],[YLEINEN KUMPPANI]:[JÄRJESTELMÄNVALVOJA (HENKILÖKUNTA)]])","v":{"v":1,"d":"100%"}}]
[null,"Konkurssi",{"v":0.1,"d":"10%"},{"v":0.2,"d":"20%"},{"v":0,"d":"0%"},{"v":0,"d":"0%"},{"v":0.4,"d":"40%"},{"v":0.3,"d":"30%"},{"$f":"SUM(Parametrit[[#This Row],[YLEINEN KUMPPANI]:[JÄRJESTELMÄNVALVOJA (HENKILÖKUNTA)]])","v":{"v":1,"d":"100%"}}]
["Kirjoita yhdistetyt hinnat oikealla olevaan soluihin (solut C12–H12). Seuraava ohje on solussa A14.","Yhdistetyt hinnat",{"v":350,"d":"350 €"},{"v":250,"d":"250 €"},{"v":300,"d":"300 €"},{"v":275,"d":"275 €"},{"v":225,"d":"225 €"},{"v":125,"d":"125 €"}]
[]
["Oikealla olevassa solussa on pylväskaavio, jossa on suunniteltujen ja toteutuneiden kustannusten välinen vertailu, ja solussa F14 on pylväskaavio, jossa on suunniteltujen ja toteutuneiden tuntien välinen vertailu."]
[null,null,"YLEINEN KUMPPANI","YRITYS","PUOLUSTUKSEN ASIANAJAJA","IMMATERIAALIOIK.","KONKURSSI","JÄRJESTELMÄNVALVOJA (HENKILÖKUNTA)"]
[null,"SUUNNITELLUT KUSTANNUKSET",{"$f":"SUBTOTAL(109,Tiedot[YLEINEN KUMPPANI])","v":{"v":78750,"d":"78,750.00 €"}},{"$f":"SUBTOTAL(109,Tiedot[YRITYSLAKIMIES])","v":{"v":66250,"d":"66,250.00 €"}},{"$f":"SUBTOTAL(109,Tiedot[PUOLUSTUKSEN ASIANAJAJA])","v":{"v":105000,"d":"105,000.00 €"}},{"$f":"SUBTOTAL(109,Tiedot[IMMATERIAALIOIKEUKSIEN ASIANAJAJA])","v":{"v":35750,"d":"35,750.00 €"}},{"$f":"SUBTOTAL(109,Tiedot[KONKURSSIASIANAJAJA])","v":{"v":0,"d":"0.00 €"}},{"$f":"SUBTOTAL(109,Tiedot[JÄRJESTELMÄNVALVOJA (HENKILÖKUNTA)])","v":{"v":66250,"d":"66,250.00 €"}}]
[null,"TOTEUTUNEET KUSTANNUKSET",{"$f":"SUBTOTAL(109,Tiedot[YLEINEN KUMPPANI 2])","v":{"v":79275,"d":"79,275.00 €"}},{"$f":"SUBTOTAL(109,Tiedot[YRITYSLAKIMIES 2])","v":{"v":67375,"d":"67,375.00 €"}},{"$f":"SUBTOTAL(109,Tiedot[PUOLUSTUKSEN ASIANAJAJA 2])","v":{"v":105600,"d":"105,600.00 €"}},{"$f":"SUBTOTAL(109,Tiedot[IMMATERIAALIOIKEUKSIEN ASIANAJAJA 2])","v":{"v":34650,"d":"34,650.00 €"}},{"$f":"SUBTOTAL(109,Tiedot[KONKURSSIASIANAJAJA 2])","v":{"v":0,"d":"0.00 €"}},{"$f":"SUBTOTAL(109,Tiedot[JÄRJESTELMÄNVALVOJA (HENKILÖKUNTA) 2])","v":{"v":67000,"d":"67,000.00 €"}}]
[null,"SUUNNITELLUT TUNNIT",{"$f":"C16/$C$12","v":{"v":225,"d":"225.00"}},{"$f":"D16/$C$12","v":{"v":189.28571428571428,"d":"189.29"}},{"v":300,"d":"300.00"},{"v":102.14285714285714,"d":"102.14"},{"v":0,"d":"0.00"},{"v":189.28571428571428,"d":"189.29"}]
[null,"TOTEUTUNEET TUNNIT",{"$f":"C17/$C$12","v":{"v":226.5,"d":"226.50"}},{"$f":"D17/$C$12","v":{"v":192.5,"d":"192.50"}},{"$f":"E17/$C$12","v":{"v":301.7142857142857,"d":"301.71"}},{"$f":"F17/$C$12","v":{"v":99,"d":"99.00"}},{"$f":"G17/$C$12","v":{"v":0,"d":"0.00"}},{"$f":"H17/$C$12","v":{"v":191.42857142857142,"d":"191.43"}}]

{"sheet":"PROJEKTIN TIEDOT","index":2,"n_rows":10,"n_cols":25,"rows_kept":10,"merged":[[1,24,8,28]]}
["Luo projektin tiedot tähän laskentataulukkoon. Yrityksen nimi päivitetään automaattisesti oikealla olevaan soluun. Tämän sarakkeen soluissa on hyödyllisiä ohjeita. Aloita siirtymällä nuolella alaspäin.",{"$f":"PROJEKTIPARAMETRIT!B1","v":"Yrityksen nimi"}]
["Tämän laskentataulukon otsikko on solussa oikealla, ja solussa Y2 on tietovinkki.",{"$f":"PROJEKTIPARAMETRIT!B2","v":"Projektisuunnitelma asianajotoimistoille"},{"$nulls":22},"TIEDOT:\nJos haluat lisätä rivin, valitse taulukon tekstiosassa (ei summat-rivillä) oikean alanurkan solu ja paina SARKAINTA, tai paina VAIHTO ja sitten F10 taulukossa, johon haluat lisätä rivin, ja valitse sitten Lisää | Taulukon rivejä yläpuolelle/Taulukon rivi alapuolelle.\nVarmista, että kaikki käyttämättömät rivit poistetaan, koska PROJEKTIN SUMMAT -pivot-taulukko käyttää taulukon kaikkia soluja ja tulokset olisivat muuten virheellisiä."]
["Luottamuksellisuusviesti on solussa oikealla.",{"$f":"PROJEKTIPARAMETRIT!B3","v":"Yrityksen nimi luottamuksellinen"}]
["Kirjoita tietoja Tiedot-taulukkoon alkaen oikealla olevasta solusta. Oikealla Tiedot-taulukossa olevat projektin tyypit päivittyvät automaattisesti Projektiparametrit-taulukon Parametrit-taulukosta.","PROJEKTIN NIMI","PROJEKTITYYPPI","ARVIOITU ALOITUS","ARVIOITU LOPETUS","TOTEUTUNUT ALOITUS","TOTEUTUNUT LOPETUS","ARVIOITU TYÖMÄÄRÄ","TOTEUTUNUT TYÖMÄÄRÄ","ARVIOITU KESTO","TOTEUTUNUT KESTO","YLEINEN KUMPPANI","YRITYSLAKIMIES","PUOLUSTUKSEN ASIANAJAJA","IMMATERIAALIOIKEUKSIEN ASIANAJAJA","KONKURSSIASIANAJAJA","JÄRJESTELMÄNVALVOJA (HENKILÖKUNTA)","YLEINEN KUMPPANI 2","YRITYSLAKIMIES 2","PUOLUSTUKSEN ASIANAJAJA 2","IMMATERIAALIOIKEUKSIEN ASIANAJAJA 2","KONKURSSIASIANAJAJA 2","JÄRJESTELMÄNVALVOJA (HENKILÖKUNTA) 2"]
[null,"Projekti 1","Liikeyrityksen liittäminen",{"$f":"TODAY()","v":"2019-02-19"},{"$f":"TODAY()+60","v":"2019-04-20"},{"$f":"TODAY()+10","v":"2019-03-01"},{"$f":"TODAY()+65","v":"2019-04-25"},200,220,{"$f":"DAYS360(Tiedot[[#This Row],[ARVIOITU ALOITUS]],Tiedot[[#This Row],[ARVIOITU LOPETUS]],FALSE)","v":61},{"$f":"DAYS360(Tiedot[[#This Row],[TOTEUTUNUT ALOITUS]],Tiedot[[#This Row],[TOTEUTUNUT LOPETUS]],FALSE)","v":54},{"$f":"INDEX(Parametrit[],MATCH(Tiedot[[#This Row],[PROJEKTITYYPPI]],Parametrit[PROJEKTITYYPPI],0),MATCH(Tiedot[[#Headers],[YLEINEN KUMPPANI]],Parametrit[#Headers],0))*INDEX(PROJEKTIPARAMETRIT!$B$12:$H$12,1,MATCH(Tiedot[[#Headers],[YLEINEN KUMPPANI]],Parametrit[#Headers],0))*Tiedot[[#This Row],[ARVIOITU TYÖMÄÄRÄ]]","v":{"v":7000,"d":"7,000 €"}},{"$f":"INDEX(Parametrit[],MATCH(Tiedot[[#This Row],[PROJEKTITYYPPI]],Parametrit[PROJEKTITYYPPI],0),MATCH(Tiedot[[#Headers],[YRITYSLAKIMIES]],Parametrit[#Headers],0))*INDEX(PROJEKTIPARAMETRIT!$B$12:$H$12,1,MATCH(Tiedot[[#Headers],[YRITYSLAKIMIES]],Parametrit[#Headers],0))*Tiedot[[#This Row],[ARVIOITU TYÖMÄÄRÄ]]","v":{"v":20000,"d":"20,000 €"}},{"$f":"INDEX(Parametrit[],MATCH(Tiedot[[#This Row],[PROJEKTITYYPPI]],Parametrit[PROJEKTITYYPPI],0),MATCH(Tiedot[[#Headers],[PUOLUSTUKSEN ASIANAJAJA]],Parametrit[#Headers],0))*INDEX(PROJEKTIPARAMETRIT!$B$12:$H$12,1,MATCH(Tiedot[[#Headers],[PUOLUSTUKSEN ASIANAJAJA]],Parametrit[#Headers],0))*Tiedot[[#This Row],[ARVIOITU TYÖMÄÄRÄ]]","v":{"v":0,"d":"0 €"}},{"$f":"INDEX(Parametrit[],MATCH(Tiedot[[#This Row],[PROJEKTITYYPPI]],Parametrit[PROJEKTITYYPPI],0),MATCH(Tiedot[[#Headers],[IMMATERIAALIOIKEUKSIEN ASIANAJAJA]],Parametrit[#Headers],0))*INDEX(PROJEKTIPARAMETRIT!$B$12:$H$12,1,MATCH(Tiedot[[#Headers],[IMMATERIAALIOIKEUKSIEN ASIANAJAJA]],Parametrit[#Headers],0))*Tiedot[[#This Row],[ARVIOITU TYÖMÄÄRÄ]]","v":{"v":0,"d":"0 €"}},{"$f":"INDEX(Parametrit[],MATCH(Tiedot[[#This Row],[PROJEKTITYYPPI]],Parametrit[PROJEKTITYYPPI],0),MATCH(Tiedot[[#Headers],[KONKURSSIASIANAJAJA]],Parametrit[#Headers],0))*INDEX(PROJEKTIPARAMETRIT!$B$12:$H$12,1,MATCH(Tiedot[[#Headers],[KONKURSSIASIANAJAJA]],Parametrit[#Headers],0))*Tiedot[[#This Row],[ARVIOITU TYÖMÄÄRÄ]]","v":{"v":0,"d":"0 €"}},{"$f":"INDEX(Parametrit[],MATCH(Tiedot[[#This Row],[PROJEKTITYYPPI]],Parametrit[PROJEKTITYYPPI],0),MATCH(Tiedot[[#Headers],[JÄRJESTELMÄNVALVOJA (HENKILÖKUNTA)]],Parametrit[#Headers],0))*INDEX(PROJEKTIPARAMETRIT!$B$12:$H$12,1,MATCH(Tiedot[[#Headers],[JÄRJESTELMÄNVALVOJA (HENKILÖKUNTA)]],Parametrit[#Headers],0))*Tiedot[[#This Row],[ARVIOITU TYÖMÄÄRÄ]]","v":{"v":12500,"d":"12,500 €"}},{"$f":"INDEX(Parametrit[],MATCH(Tiedot[[#This Row],[PROJEKTITYYPPI]],Parametrit[PROJEKTITYYPPI],0),MATCH(Tiedot[[#Headers],[YLEINEN KUMPPANI]],Parametrit[#Headers],0))*INDEX(PROJEKTIPARAMETRIT!$B$12:$H$12,1,MATCH(Tiedot[[#Headers],[YLEINEN KUMPPANI]],Parametrit[#Headers],0))*Tiedot[[#This Row],[TOTEUTUNUT TYÖMÄÄRÄ]]","v":{"v":7700,"d":"7,700 €"}},{"$f":"INDEX(Parametrit[],MATCH(Tiedot[[#This Row],[PROJEKTITYYPPI]],Parametrit[PROJEKTITYYPPI],0),MATCH(Tiedot[[#Headers],[YRITYSLAKIMIES]],Parametrit[#Headers],0))*INDEX(PROJEKTIPARAMETRIT!$B$12:$H$12,1,MATCH(Tiedot[[#Headers],[YRITYSLAKIMIES]],Parametrit[#Headers],0))*Tiedot[[#This Row],[TOTEUTUNUT TYÖMÄÄRÄ]]","v":{"v":22000,"d":"22,000 €"}},{"$f":"INDEX(Parametrit[],MATCH(Tiedot[[#This Row],[PROJEKTITYYPPI]],Parametrit[PROJEKTITYYPPI],0),MATCH(Tiedot[[#Headers],[PUOLUSTUKSEN ASIANAJAJA]],Parametrit[#Headers],0))*INDEX(PROJEKTIPARAMETRIT!$B$12:$H$12,1,MATCH(Tiedot[[#Headers],[PUOLUSTUKSEN ASIANAJAJA]],Parametrit[#Headers],0))*Tiedot[[#This Row],[TOTEUTUNUT TYÖMÄÄRÄ]]","v":{"v":0,"d":"0 €"}},{"$f":"INDEX(Parametrit[],MATCH(Tiedot[[#This Row],[PROJEKTITYYPPI]],Parametrit[PROJEKTITYYPPI],0),MATCH(Tiedot[[#Headers],[IMMATERIAALIOIKEUKSIEN ASIANAJAJA]],Parametrit[#Headers],0))*INDEX(PROJEKTIPARAMETRIT!$B$12:$H$12,1,MATCH(Tiedot[[#Headers],[IMMATERIAALIOIKEUKSIEN ASIANAJAJA]],Parametrit[#Headers],0))*Tiedot[[#This Row],[TOTEUTUNUT TYÖMÄÄRÄ]]","v":{"v":0,"d":"0 €"}},{"$f":"INDEX(Parametrit[],MATCH(Tiedot[[#This Row],[PROJEKTITYYPPI]],Parametrit[PROJEKTITYYPPI],0),MATCH(Tiedot[[#Headers],[KONKURSSIASIANAJAJA]],Parametrit[#Headers],0))*INDEX(PROJEKTIPARAMETRIT!$B$12:$H$12,1,MATCH(Tiedot[[#Headers],[KONKURSSIASIANAJAJA]],Parametrit[#Headers],0))*Tiedot[[#This Row],[TOTEUTUNUT TYÖMÄÄRÄ]]","v":{"v":0,"d":"0 €"}},{"$f":"INDEX(Parametrit[],MATCH(Tiedot[[#This Row],[PROJEKTITYYPPI]],Parametrit[PROJEKTITYYPPI],0),MATCH(Tiedot[[#Headers],[JÄRJESTELMÄNVALVOJA (HENKILÖKUNTA)]],Parametrit[#Headers],0))*INDEX(PROJEKTIPARAMETRIT!$B$12:$H$12,1,MATCH(Tiedot[[#Headers],[JÄRJESTELMÄNVALVOJA (HENKILÖKUNTA)]],Parametrit[#Headers],0))*Tiedot[[#This Row],[TOTEUTUNUT TYÖMÄÄRÄ]]","v":{"v":13750,"d":"13,750 €"}}]
[null,"Projekti 2","Liikeyrityksen yritysosto",{"$f":"TODAY()+30","v":"2019-03-21"},{"$f":"TODAY()+100","v":"2019-05-30"},{"$f":"TODAY()+40","v":"2019-03-31"},{"$f":"TODAY()+110","v":"2019-06-09"},400,390,{"$f":"DAYS360(Tiedot[[#This Row],[ARVIOITU ALOITUS]],Tiedot[[#This Row],[ARVIOITU LOPETUS]],FALSE)","v":69},{"$f":"DAYS360(Tiedot[[#This Row],[TOTEUTUNUT ALOITUS]],Tiedot[[#This Row],[TOTEUTUNUT LOPETUS]],FALSE)","v":69},{"$f":"INDEX(Parametrit[],MATCH(Tiedot[[#This Row],[PROJEKTITYYPPI]],Parametrit[PROJEKTITYYPPI],0),MATCH(Tiedot[[#Headers],[YLEINEN KUMPPANI]],Parametrit[#Headers],0))*INDEX(PROJEKTIPARAMETRIT!$B$12:$H$12,1,MATCH(Tiedot[[#Headers],[YLEINEN KUMPPANI]],Parametrit[#Headers],0))*Tiedot[[#This Row],[ARVIOITU TYÖMÄÄRÄ]]","v":{"v":14000,"d":"14,000 €"}},{"$f":"INDEX(Parametrit[],MATCH(Tiedot[[#This Row],[PROJEKTITYYPPI]],Parametrit[PROJEKTITYYPPI],0),MATCH(Tiedot[[#Headers],[YRITYSLAKIMIES]],Parametrit[#Headers],0))*INDEX(PROJEKTIPARAMETRIT!$B$12:$H$12,1,MATCH(Tiedot[[#Headers],[YRITYSLAKIMIES]],Parametrit[#Headers],0))*Tiedot[[#This Row],[ARVIOITU TYÖMÄÄRÄ]]","v":{"v":40000,"d":"40,000 €"}},{"$f":"INDEX(Parametrit[],MATCH(Tiedot[[#This Row],[PROJEKTITYYPPI]],Parametrit[PROJEKTITYYPPI],0),MATCH(Tiedot[[#Headers],[PUOLUSTUKSEN ASIANAJAJA]],Parametrit[#Headers],0))*INDEX(PROJEKTIPARAMETRIT!$B$12:$H$12,1,MATCH(Tiedot[[#Headers],[PUOLUSTUKSEN ASIANAJAJA]],Parametrit[#Headers],0))*Tiedot[[#This Row],[ARVIOITU TYÖMÄÄRÄ]]","v":{"v":0,"d":"0 €"}},{"$f":"INDEX(Parametrit[],MATCH(Tiedot[[#This Row],[PROJEKTITYYPPI]],Parametrit[PROJEKTITYYPPI],0),MATCH(Tiedot[[#Headers],[IMMATERIAALIOIKEUKSIEN ASIANAJAJA]],Parametrit[#Headers],0))*INDEX(PROJEKTIPARAMETRIT!$B$12:$H$12,1,MATCH(Tiedot[[#Headers],[IMMATERIAALIOIKEUKSIEN ASIANAJAJA]],Parametrit[#Headers],0))*Tiedot[[#This Row],[ARVIOITU TYÖMÄÄRÄ]]","v":{"v":11000,"d":"11,000 €"}},{"$f":"INDEX(Parametrit[],MATCH(Tiedot[[#This Row],[PROJEKTITYYPPI]],Parametrit[PROJEKTITYYPPI],0),MATCH(Tiedot[[#Headers],[KONKURSSIASIANAJAJA]],Parametrit[#Headers],0))*INDEX(PROJEKTIPARAMETRIT!$B$12:$H$12,1,MATCH(Tiedot[[#Headers],[KONKURSSIASIANAJAJA]],Parametrit[#Headers],0))*Tiedot[[#This Row],[ARVIOITU TYÖMÄÄRÄ]]","v":{"v":0,"d":"0 €"}},{"$f":"INDEX(Parametrit[],MATCH(Tiedot[[#This Row],[PROJEKTITYYPPI]],Parametrit[PROJEKTITYYPPI],0),MATCH(Tiedot[[#Headers],[JÄRJESTELMÄNVALVOJA (HENKILÖKUNTA)]],Parametrit[#Headers],0))*INDEX(PROJEKTIPARAMETRIT!$B$12:$H$12,1,MATCH(Tiedot[[#Headers],[JÄRJESTELMÄNVALVOJA (HENKILÖKUNTA)]],Parametrit[#Headers],0))*Tiedot[[#This Row],[ARVIOITU TYÖMÄÄRÄ]]","v":{"v":20000,"d":"20,000 €"}},{"$f":"INDEX(Parametrit[],MATCH(Tiedot[[#This Row],[PROJEKTITYYPPI]],Parametrit[PROJEKTITYYPPI],0),MATCH(Tiedot[[#Headers],[YLEINEN KUMPPANI]],Parametrit[#Headers],0))*INDEX(PROJEKTIPARAMETRIT!$B$12:$H$12,1,MATCH(Tiedot[[#Headers],[YLEINEN KUMPPANI]],Parametrit[#Headers],0))*Tiedot[[#This Row],[TOTEUTUNUT TYÖMÄÄRÄ]]","v":{"v":13650,"d":"13,650 €"}},{"$f":"INDEX(Parametrit[],MATCH(Tiedot[[#This Row],[PROJEKTITYYPPI]],Parametrit[PROJEKTITYYPPI],0),MATCH(Tiedot[[#Headers],[YRITYSLAKIMIES]],Parametrit[#Headers],0))*INDEX(PROJEKTIPARAMETRIT!$B$12:$H$12,1,MATCH(Tiedot[[#Headers],[YRITYSLAKIMIES]],Parametrit[#Headers],0))*Tiedot[[#This Row],[TOTEUTUNUT TYÖMÄÄRÄ]]","v":{"v":39000,"d":"39,000 €"}},{"$f":"INDEX(Parametrit[],MATCH(Tiedot[[#This Row],[PROJEKTITYYPPI]],Parametrit[PROJEKTITYYPPI],0),MATCH(Tiedot[[#Headers],[PUOLUSTUKSEN ASIANAJAJA]],Parametrit[#Headers],0))*INDEX(PROJEKTIPARAMETRIT!$B$12:$H$12,1,MATCH(Tiedot[[#Headers],[PUOLUSTUKSEN ASIANAJAJA]],Parametrit[#Headers],0))*Tiedot[[#This Row],[TOTEUTUNUT TYÖMÄÄRÄ]]","v":{"v":0,"d":"0 €"}},{"$f":"INDEX(Parametrit[],MATCH(Tiedot[[#This Row],[PROJEKTITYYPPI]],Parametrit[PROJEKTITYYPPI],0),MATCH(Tiedot[[#Headers],[IMMATERIAALIOIKEUKSIEN ASIANAJAJA]],Parametrit[#Headers],0))*INDEX(PROJEKTIPARAMETRIT!$B$12:$H$12,1,MATCH(Tiedot[[#Headers],[IMMATERIAALIOIKEUKSIEN ASIANAJAJA]],Parametrit[#Headers],0))*Tiedot[[#This Row],[TOTEUTUNUT TYÖMÄÄRÄ]]","v":{"v":10725,"d":"10,725 €"}},{"$f":"INDEX(Parametrit[],MATCH(Tiedot[[#This Row],[PROJEKTITYYPPI]],Parametrit[PROJEKTITYYPPI],0),MATCH(Tiedot[[#Headers],[KONKURSSIASIANAJAJA]],Parametrit[#Headers],0))*INDEX(PROJEKTIPARAMETRIT!$B$12:$H$12,1,MATCH(Tiedot[[#Headers],[KONKURSSIASIANAJAJA]],Parametrit[#Headers],0))*Tiedot[[#This Row],[TOTEUTUNUT TYÖMÄÄRÄ]]","v":{"v":0,"d":"0 €"}},{"$f":"INDEX(Parametrit[],MATCH(Tiedot[[#This Row],[PROJEKTITYYPPI]],Parametrit[PROJEKTITYYPPI],0),MATCH(Tiedot[[#Headers],[JÄRJESTELMÄNVALVOJA (HENKILÖKUNTA)]],Parametrit[#Headers],0))*INDEX(PROJEKTIPARAMETRIT!$B$12:$H$12,1,MATCH(Tiedot[[#Headers],[JÄRJESTELMÄNVALVOJA (HENKILÖKUNTA)]],Parametrit[#Headers],0))*Tiedot[[#This Row],[TOTEUTUNUT TYÖMÄÄRÄ]]","v":{"v":19500,"d":"19,500 €"}}]
[null,"Projekti 3","Tuotteen vastuunalaisuuspuolustus",{"$f":"TODAY()+150","v":"2019-07-19"},{"$f":"TODAY()+150","v":"2019-07-19"},{"$f":"TODAY()+150","v":"2019-07-19"},{"$f":"TODAY()+170","v":"2019-08-08"},500,500,{"$f":"DAYS360(Tiedot[[#This Row],[ARVIOITU ALOITUS]],Tiedot[[#This Row],[ARVIOITU LOPETUS]],FALSE)","v":0},{"$f":"DAYS360(Tiedot[[#This Row],[TOTEUTUNUT ALOITUS]],Tiedot[[#This Row],[TOTEUTUNUT LOPETUS]],FALSE)","v":19},{"$f":"INDEX(Parametrit[],MATCH(Tiedot[[#This Row],[PROJEKTITYYPPI]],Parametrit[PROJEKTITYYPPI],0),MATCH(Tiedot[[#Headers],[YLEINEN KUMPPANI]],Parametrit[#Headers],0))*INDEX(PROJEKTIPARAMETRIT!$B$12:$H$12,1,MATCH(Tiedot[[#Headers],[YLEINEN KUMPPANI]],Parametrit[#Headers],0))*Tiedot[[#This Row],[ARVIOITU TYÖMÄÄRÄ]]","v":{"v":35000,"d":"35,000 €"}},{"$f":"INDEX(Parametrit[],MATCH(Tiedot[[#This Row],[PROJEKTITYYPPI]],Parametrit[PROJEKTITYYPPI],0),MATCH(Tiedot[[#Headers],[YRITYSLAKIMIES]],Parametrit[#Headers],0))*INDEX(PROJEKTIPARAMETRIT!$B$12:$H$12,1,MATCH(Tiedot[[#Headers],[YRITYSLAKIMIES]],Parametrit[#Headers],0))*Tiedot[[#This Row],[ARVIOITU TYÖMÄÄRÄ]]","v":{"v":0,"d":"0 €"}},{"$f":"INDEX(Parametrit[],MATCH(Tiedot[[#This Row],[PROJEKTITYYPPI]],Parametrit[PROJEKTITYYPPI],0),MATCH(Tiedot[[#Headers],[PUOLUSTUKSEN ASIANAJAJA]],Parametrit[#Headers],0))*INDEX(PROJEKTIPARAMETRIT!$B$12:$H$12,1,MATCH(Tiedot[[#Headers],[PUOLUSTUKSEN ASIANAJAJA]],Parametrit[#Headers],0))*Tiedot[[#This Row],[ARVIOITU TYÖMÄÄRÄ]]","v":{"v":75000,"d":"75,000 €"}},{"$f":"INDEX(Parametrit[],MATCH(Tiedot[[#This Row],[PROJEKTITYYPPI]],Parametrit[PROJEKTITYYPPI],0),MATCH(Tiedot[[#Headers],[IMMATERIAALIOIKEUKSIEN ASIANAJAJA]],Parametrit[#Headers],0))*INDEX(PROJEKTIPARAMETRIT!$B$12:$H$12,1,MATCH(Tiedot[[#Headers],[IMMATERIAALIOIKEUKSIEN ASIANAJAJA]],Parametrit[#Headers],0))*Tiedot[[#This Row],[ARVIOITU TYÖMÄÄRÄ]]","v":{"v":0,"d":"0 €"}},{"$f":"INDEX(Parametrit[],MATCH(Tiedot[[#This Row],[PROJEKTITYYPPI]],Parametrit[PROJEKTITYYPPI],0),MATCH(Tiedot[[#Headers],[KONKURSSIASIANAJAJA]],Parametrit[#Headers],0))*INDEX(PROJEKTIPARAMETRIT!$B$12:$H$12,1,MATCH(Tiedot[[#Headers],[KONKURSSIASIANAJAJA]],Parametrit[#Headers],0))*Tiedot[[#This Row],[ARVIOITU TYÖMÄÄRÄ]]","v":{"v":0,"d":"0 €"}},{"$f":"INDEX(Parametrit[],MATCH(Tiedot[[#This Row],[PROJEKTITYYPPI]],Parametrit[PROJEKTITYYPPI],0),MATCH(Tiedot[[#Headers],[JÄRJESTELMÄNVALVOJA (HENKILÖKUNTA)]],Parametrit[#Headers],0))*INDEX(PROJEKTIPARAMETRIT!$B$12:$H$12,1,MATCH(Tiedot[[#Headers],[JÄRJESTELMÄNVALVOJA (HENKILÖKUNTA)]],Parametrit[#Headers],0))*Tiedot[[#This Row],[ARVIOITU TYÖMÄÄRÄ]]","v":{"v":18750,"d":"18,750 €"}},{"$f":"INDEX(Parametrit[],MATCH(Tiedot[[#This Row],[PROJEKTITYYPPI]],Parametrit[PROJEKTITYYPPI],0),MATCH(Tiedot[[#Headers],[YLEINEN KUMPPANI]],Parametrit[#Headers],0))*INDEX(PROJEKTIPARAMETRIT!$B$12:$H$12,1,MATCH(Tiedot[[#Headers],[YLEINEN KUMPPANI]],Parametrit[#Headers],0))*Tiedot[[#This Row],[TOTEUTUNUT TYÖMÄÄRÄ]]","v":{"v":35000,"d":"35,000 €"}},{"$f":"INDEX(Parametrit[],MATCH(Tiedot[[#This Row],[PROJEKTITYYPPI]],Parametrit[PROJEKTITYYPPI],0),MATCH(Tiedot[[#Headers],[YRITYSLAKIMIES]],Parametrit[#Headers],0))*INDEX(PROJEKTIPARAMETRIT!$B$12:$H$12,1,MATCH(Tiedot[[#Headers],[YRITYSLAKIMIES]],Parametrit[#Headers],0))*Tiedot[[#This Row],[TOTEUTUNUT TYÖMÄÄRÄ]]","v":{"v":0,"d":"0 €"}},{"$f":"INDEX(Parametrit[],MATCH(Tiedot[[#This Row],[PROJEKTITYYPPI]],Parametrit[PROJEKTITYYPPI],0),MATCH(Tiedot[[#Headers],[PUOLUSTUKSEN ASIANAJAJA]],Parametrit[#Headers],0))*INDEX(PROJEKTIPARAMETRIT!$B$12:$H$12,1,MATCH(Tiedot[[#Headers],[PUOLUSTUKSEN ASIANAJAJA]],Parametrit[#Headers],0))*Tiedot[[#This Row],[TOTEUTUNUT TYÖMÄÄRÄ]]","v":{"v":75000,"d":"75,000 €"}},{"$f":"INDEX(Parametrit[],MATCH(Tiedot[[#This Row],[PROJEKTITYYPPI]],Parametrit[PROJEKTITYYPPI],0),MATCH(Tiedot[[#Headers],[IMMATERIAALIOIKEUKSIEN ASIANAJAJA]],Parametrit[#Headers],0))*INDEX(PROJEKTIPARAMETRIT!$B$12:$H$12,1,MATCH(Tiedot[[#Headers],[IMMATERIAALIOIKEUKSIEN ASIANAJAJA]],Parametrit[#Headers],0))*Tiedot[[#This Row],[TOTEUTUNUT TYÖMÄÄRÄ]]","v":{"v":0,"d":"0 €"}},{"$f":"INDEX(Parametrit[],MATCH(Tiedot[[#This Row],[PROJEKTITYYPPI]],Parametrit[PROJEKTITYYPPI],0),MATCH(Tiedot[[#Headers],[KONKURSSIASIANAJAJA]],Parametrit[#Headers],0))*INDEX(PROJEKTIPARAMETRIT!$B$12:$H$12,1,MATCH(Tiedot[[#Headers],[KONKURSSIASIANAJAJA]],Parametrit[#Headers],0))*Tiedot[[#This Row],[TOTEUTUNUT TYÖMÄÄRÄ]]","v":{"v":0,"d":"0 €"}},{"$f":"INDEX(Parametrit[],MATCH(Tiedot[[#This Row],[PROJEKTITYYPPI]],Parametrit[PROJEKTITYYPPI],0),MATCH(Tiedot[[#Headers],[JÄRJESTELMÄNVALVOJA (HENKILÖKUNTA)]],Parametrit[#Headers],0))*INDEX(PROJEKTIPARAMETRIT!$B$12:$H$12,1,MATCH(Tiedot[[#Headers],[JÄRJESTELMÄNVALVOJA (HENKILÖKUNTA)]],Parametrit[#Headers],0))*Tiedot[[#This Row],[TOTEUTUNUT TYÖMÄÄRÄ]]","v":{"v":18750,"d":"18,750 €"}}]
[null,"Projekti 4","Patenttihakemus",{"$f":"TODAY()+200","v":"2019-09-07"},{"$f":"TODAY()+230","v":"2019-10-07"},{"$f":"TODAY()+230","v":"2019-10-07"},{"$f":"TODAY()+230","v":"2019-10-07"},150,145,{"$f":"DAYS360(Tiedot[[#This Row],[ARVIOITU ALOITUS]],Tiedot[[#This Row],[ARVIOITU LOPETUS]],FALSE)","v":30},{"$f":"DAYS360(Tiedot[[#This Row],[TOTEUTUNUT ALOITUS]],Tiedot[[#This Row],[TOTEUTUNUT LOPETUS]],FALSE)","v":0},{"$f":"INDEX(Parametrit[],MATCH(Tiedot[[#This Row],[PROJEKTITYYPPI]],Parametrit[PROJEKTITYYPPI],0),MATCH(Tiedot[[#Headers],[YLEINEN KUMPPANI]],Parametrit[#Headers],0))*INDEX(PROJEKTIPARAMETRIT!$B$12:$H$12,1,MATCH(Tiedot[[#Headers],[YLEINEN KUMPPANI]],Parametrit[#Headers],0))*Tiedot[[#This Row],[ARVIOITU TYÖMÄÄRÄ]]","v":{"v":5250,"d":"5,250 €"}},{"$f":"INDEX(Parametrit[],MATCH(Tiedot[[#This Row],[PROJEKTITYYPPI]],Parametrit[PROJEKTITYYPPI],0),MATCH(Tiedot[[#Headers],[YRITYSLAKIMIES]],Parametrit[#Headers],0))*INDEX(PROJEKTIPARAMETRIT!$B$12:$H$12,1,MATCH(Tiedot[[#Headers],[YRITYSLAKIMIES]],Parametrit[#Headers],0))*Tiedot[[#This Row],[ARVIOITU TYÖMÄÄRÄ]]","v":{"v":0,"d":"0 €"}},{"$f":"INDEX(Parametrit[],MATCH(Tiedot[[#This Row],[PROJEKTITYYPPI]],Parametrit[PROJEKTITYYPPI],0),MATCH(Tiedot[[#Headers],[PUOLUSTUKSEN ASIANAJAJA]],Parametrit[#Headers],0))*INDEX(PROJEKTIPARAMETRIT!$B$12:$H$12,1,MATCH(Tiedot[[#Headers],[PUOLUSTUKSEN ASIANAJAJA]],Parametrit[#Headers],0))*Tiedot[[#This Row],[ARVIOITU TYÖMÄÄRÄ]]","v":{"v":0,"d":"0 €"}},{"$f":"INDEX(Parametrit[],MATCH(Tiedot[[#This Row],[PROJEKTITYYPPI]],Parametrit[PROJEKTITYYPPI],0),MATCH(Tiedot[[#Headers],[IMMATERIAALIOIKEUKSIEN ASIANAJAJA]],Parametrit[#Headers],0))*INDEX(PROJEKTIPARAMETRIT!$B$12:$H$12,1,MATCH(Tiedot[[#Headers],[IMMATERIAALIOIKEUKSIEN ASIANAJAJA]],Parametrit[#Headers],0))*Tiedot[[#This Row],[ARVIOITU TYÖMÄÄRÄ]]","v":{"v":24750,"d":"24,750 €"}},{"$f":"INDEX(Parametrit[],MATCH(Tiedot[[#This Row],[PROJEKTITYYPPI]],Parametrit[PROJEKTITYYPPI],0),MATCH(Tiedot[[#Headers],[KONKURSSIASIANAJAJA]],Parametrit[#Headers],0))*INDEX(PROJEKTIPARAMETRIT!$B$12:$H$12,1,MATCH(Tiedot[[#Headers],[KONKURSSIASIANAJAJA]],Parametrit[#Headers],0))*Tiedot[[#This Row],[ARVIOITU TYÖMÄÄRÄ]]","v":{"v":0,"d":"0 €"}},{"$f":"INDEX(Parametrit[],MATCH(Tiedot[[#This Row],[PROJEKTITYYPPI]],Parametrit[PROJEKTITYYPPI],0),MATCH(Tiedot[[#Headers],[JÄRJESTELMÄNVALVOJA (HENKILÖKUNTA)]],Parametrit[#Headers],0))*INDEX(PROJEKTIPARAMETRIT!$B$12:$H$12,1,MATCH(Tiedot[[#Headers],[JÄRJESTELMÄNVALVOJA (HENKILÖKUNTA)]],Parametrit[#Headers],0))*Tiedot[[#This Row],[ARVIOITU TYÖMÄÄRÄ]]","v":{"v":5625,"d":"5,625 €"}},{"$f":"INDEX(Parametrit[],MATCH(Tiedot[[#This Row],[PROJEKTITYYPPI]],Parametrit[PROJEKTITYYPPI],0),MATCH(Tiedot[[#Headers],[YLEINEN KUMPPANI]],Parametrit[#Headers],0))*INDEX(PROJEKTIPARAMETRIT!$B$12:$H$12,1,MATCH(Tiedot[[#Headers],[YLEINEN KUMPPANI]],Parametrit[#Headers],0))*Tiedot[[#This Row],[TOTEUTUNUT TYÖMÄÄRÄ]]","v":{"v":5075,"d":"5,075 €"}},{"$f":"INDEX(Parametrit[],MATCH(Tiedot[[#This Row],[PROJEKTITYYPPI]],Parametrit[PROJEKTITYYPPI],0),MATCH(Tiedot[[#Headers],[YRITYSLAKIMIES]],Parametrit[#Headers],0))*INDEX(PROJEKTIPARAMETRIT!$B$12:$H$12,1,MATCH(Tiedot[[#Headers],[YRITYSLAKIMIES]],Parametrit[#Headers],0))*Tiedot[[#This Row],[TOTEUTUNUT TYÖMÄÄRÄ]]","v":{"v":0,"d":"0 €"}},{"$f":"INDEX(Parametrit[],MATCH(Tiedot[[#This Row],[PROJEKTITYYPPI]],Parametrit[PROJEKTITYYPPI],0),MATCH(Tiedot[[#Headers],[PUOLUSTUKSEN ASIANAJAJA]],Parametrit[#Headers],0))*INDEX(PROJEKTIPARAMETRIT!$B$12:$H$12,1,MATCH(Tiedot[[#Headers],[PUOLUSTUKSEN ASIANAJAJA]],Parametrit[#Headers],0))*Tiedot[[#This Row],[TOTEUTUNUT TYÖMÄÄRÄ]]","v":{"v":0,"d":"0 €"}},{"$f":"INDEX(Parametrit[],MATCH(Tiedot[[#This Row],[PROJEKTITYYPPI]],Parametrit[PROJEKTITYYPPI],0),MATCH(Tiedot[[#Headers],[IMMATERIAALIOIKEUKSIEN ASIANAJAJA]],Parametrit[#Headers],0))*INDEX(PROJEKTIPARAMETRIT!$B$12:$H$12,1,MATCH(Tiedot[[#Headers],[IMMATERIAALIOIKEUKSIEN ASIANAJAJA]],Parametrit[#Headers],0))*Tiedot[[#This Row],[TOTEUTUNUT TYÖMÄÄRÄ]]","v":{"v":23925,"d":"23,925 €"}},{"$f":"INDEX(Parametrit[],MATCH(Tiedot[[#This Row],[PROJEKTITYYPPI]],Parametrit[PROJEKTITYYPPI],0),MATCH(Tiedot[[#Headers],[KONKURSSIASIANAJAJA]],Parametrit[#Headers],0))*INDEX(PROJEKTIPARAMETRIT!$B$12:$H$12,1,MATCH(Tiedot[[#Headers],[KONKURSSIASIANAJAJA]],Parametrit[#Headers],0))*Tiedot[[#This Row],[TOTEUTUNUT TYÖMÄÄRÄ]]","v":{"v":0,"d":"0 €"}},{"$f":"INDEX(Parametrit[],MATCH(Tiedot[[#This Row],[PROJEKTITYYPPI]],Parametrit[PROJEKTITYYPPI],0),MATCH(Tiedot[[#Headers],[JÄRJESTELMÄNVALVOJA (HENKILÖKUNTA)]],Parametrit[#Headers],0))*INDEX(PROJEKTIPARAMETRIT!$B$12:$H$12,1,MATCH(Tiedot[[#Headers],[JÄRJESTELMÄNVALVOJA (HENKILÖKUNTA)]],Parametrit[#Headers],0))*Tiedot[[#This Row],[TOTEUTUNUT TYÖMÄÄRÄ]]","v":{"v":5437.5,"d":"5,438 €"}}]
[null,"Projekti 5","Työntekijän oikeudenkäynti",{"$f":"TODAY()+220","v":"2019-09-27"},{"$f":"TODAY()+250","v":"2019-10-27"},{"$f":"TODAY()+230","v":"2019-10-07"},{"$f":"TODAY()+259","v":"2019-11-05"},250,255,{"$f":"DAYS360(Tiedot[[#This Row],[ARVIOITU ALOITUS]],Tiedot[[#This Row],[ARVIOITU LOPETUS]],FALSE)","v":30},{"$f":"DAYS360(Tiedot[[#This Row],[TOTEUTUNUT ALOITUS]],Tiedot[[#This Row],[TOTEUTUNUT LOPETUS]],FALSE)","v":28},{"$f":"INDEX(Parametrit[],MATCH(Tiedot[[#This Row],[PROJEKTITYYPPI]],Parametrit[PROJEKTITYYPPI],0),MATCH(Tiedot[[#Headers],[YLEINEN KUMPPANI]],Parametrit[#Headers],0))*INDEX(PROJEKTIPARAMETRIT!$B$12:$H$12,1,MATCH(Tiedot[[#Headers],[YLEINEN KUMPPANI]],Parametrit[#Headers],0))*Tiedot[[#This Row],[ARVIOITU TYÖMÄÄRÄ]]","v":{"v":17500,"d":"17,500 €"}},{"$f":"INDEX(Parametrit[],MATCH(Tiedot[[#This Row],[PROJEKTITYYPPI]],Parametrit[PROJEKTITYYPPI],0),MATCH(Tiedot[[#Headers],[YRITYSLAKIMIES]],Parametrit[#Headers],0))*INDEX(PROJEKTIPARAMETRIT!$B$12:$H$12,1,MATCH(Tiedot[[#Headers],[YRITYSLAKIMIES]],Parametrit[#Headers],0))*Tiedot[[#This Row],[ARVIOITU TYÖMÄÄRÄ]]","v":{"v":6250,"d":"6,250 €"}},{"$f":"INDEX(Parametrit[],MATCH(Tiedot[[#This Row],[PROJEKTITYYPPI]],Parametrit[PROJEKTITYYPPI],0),MATCH(Tiedot[[#Headers],[PUOLUSTUKSEN ASIANAJAJA]],Parametrit[#Headers],0))*INDEX(PROJEKTIPARAMETRIT!$B$12:$H$12,1,MATCH(Tiedot[[#Headers],[PUOLUSTUKSEN ASIANAJAJA]],Parametrit[#Headers],0))*Tiedot[[#This Row],[ARVIOITU TYÖMÄÄRÄ]]","v":{"v":30000,"d":"30,000 €"}},{"$f":"INDEX(Parametrit[],MATCH(Tiedot[[#This Row],[PROJEKTITYYPPI]],Parametrit[PROJEKTITYYPPI],0),MATCH(Tiedot[[#Headers],[IMMATERIAALIOIKEUKSIEN ASIANAJAJA]],Parametrit[#Headers],0))*INDEX(PROJEKTIPARAMETRIT!$B$12:$H$12,1,MATCH(Tiedot[[#Headers],[IMMATERIAALIOIKEUKSIEN ASIANAJAJA]],Parametrit[#Headers],0))*Tiedot[[#This Row],[ARVIOITU TYÖMÄÄRÄ]]","v":{"v":0,"d":"0 €"}},{"$f":"INDEX(Parametrit[],MATCH(Tiedot[[#This Row],[PROJEKTITYYPPI]],Parametrit[PROJEKTITYYPPI],0),MATCH(Tiedot[[#Headers],[KONKURSSIASIANAJAJA]],Parametrit[#Headers],0))*INDEX(PROJEKTIPARAMETRIT!$B$12:$H$12,1,MATCH(Tiedot[[#Headers],[KONKURSSIASIANAJAJA]],Parametrit[#Headers],0))*Tiedot[[#This Row],[ARVIOITU TYÖMÄÄRÄ]]","v":{"v":0,"d":"0 €"}},{"$f":"INDEX(Parametrit[],MATCH(Tiedot[[#This Row],[PROJEKTITYYPPI]],Parametrit[PROJEKTITYYPPI],0),MATCH(Tiedot[[#Headers],[JÄRJESTELMÄNVALVOJA (HENKILÖKUNTA)]],Parametrit[#Headers],0))*INDEX(PROJEKTIPARAMETRIT!$B$12:$H$12,1,MATCH(Tiedot[[#Headers],[JÄRJESTELMÄNVALVOJA (HENKILÖKUNTA)]],Parametrit[#Headers],0))*Tiedot[[#This Row],[ARVIOITU TYÖMÄÄRÄ]]","v":{"v":9375,"d":"9,375 €"}},{"$f":"INDEX(Parametrit[],MATCH(Tiedot[[#This Row],[PROJEKTITYYPPI]],Parametrit[PROJEKTITYYPPI],0),MATCH(Tiedot[[#Headers],[YLEINEN KUMPPANI]],Parametrit[#Headers],0))*INDEX(PROJEKTIPARAMETRIT!$B$12:$H$12,1,MATCH(Tiedot[[#Headers],[YLEINEN KUMPPANI]],Parametrit[#Headers],0))*Tiedot[[#This Row],[TOTEUTUNUT TYÖMÄÄRÄ]]","v":{"v":17850,"d":"17,850 €"}},{"$f":"INDEX(Parametrit[],MATCH(Tiedot[[#This Row],[PROJEKTITYYPPI]],Parametrit[PROJEKTITYYPPI],0),MATCH(Tiedot[[#Headers],[YRITYSLAKIMIES]],Parametrit[#Headers],0))*INDEX(PROJEKTIPARAMETRIT!$B$12:$H$12,1,MATCH(Tiedot[[#Headers],[YRITYSLAKIMIES]],Parametrit[#Headers],0))*Tiedot[[#This Row],[TOTEUTUNUT TYÖMÄÄRÄ]]","v":{"v":6375,"d":"6,375 €"}},{"$f":"INDEX(Parametrit[],MATCH(Tiedot[[#This Row],[PROJEKTITYYPPI]],Parametrit[PROJEKTITYYPPI],0),MATCH(Tiedot[[#Headers],[PUOLUSTUKSEN ASIANAJAJA]],Parametrit[#Headers],0))*INDEX(PROJEKTIPARAMETRIT!$B$12:$H$12,1,MATCH(Tiedot[[#Headers],[PUOLUSTUKSEN ASIANAJAJA]],Parametrit[#Headers],0))*Tiedot[[#This Row],[TOTEUTUNUT TYÖMÄÄRÄ]]","v":{"v":30600,"d":"30,600 €"}},{"$f":"INDEX(Parametrit[],MATCH(Tiedot[[#This Row],[PROJEKTITYYPPI]],Parametrit[PROJEKTITYYPPI],0),MATCH(Tiedot[[#Headers],[IMMATERIAALIOIKEUKSIEN ASIANAJAJA]],Parametrit[#Headers],0))*INDEX(PROJEKTIPARAMETRIT!$B$12:$H$12,1,MATCH(Tiedot[[#Headers],[IMMATERIAALIOIKEUKSIEN ASIANAJAJA]],Parametrit[#Headers],0))*Tiedot[[#This Row],[TOTEUTUNUT TYÖMÄÄRÄ]]","v":{"v":0,"d":"0 €"}},{"$f":"INDEX(Parametrit[],MATCH(Tiedot[[#This Row],[PROJEKTITYYPPI]],Parametrit[PROJEKTITYYPPI],0),MATCH(Tiedot[[#Headers],[KONKURSSIASIANAJAJA]],Parametrit[#Headers],0))*INDEX(PROJEKTIPARAMETRIT!$B$12:$H$12,1,MATCH(Tiedot[[#Headers],[KONKURSSIASIANAJAJA]],Parametrit[#Headers],0))*Tiedot[[#This Row],[TOTEUTUNUT TYÖMÄÄRÄ]]","v":{"v":0,"d":"0 €"}},{"$f":"INDEX(Parametrit[],MATCH(Tiedot[[#This Row],[PROJEKTITYYPPI]],Parametrit[PROJEKTITYYPPI],0),MATCH(Tiedot[[#Headers],[JÄRJESTELMÄNVALVOJA (HENKILÖKUNTA)]],Parametrit[#Headers],0))*INDEX(PROJEKTIPARAMETRIT!$B$12:$H$12,1,MATCH(Tiedot[[#Headers],[JÄRJESTELMÄNVALVOJA (HENKILÖKUNTA)]],Parametrit[#Headers],0))*Tiedot[[#This Row],[TOTEUTUNUT TYÖMÄÄRÄ]]","v":{"v":9562.5,"d":"9,563 €"}}]
[null,"SUMMA",{"$nulls":5},{"$f":"SUBTOTAL(109,Tiedot[ARVIOITU TYÖMÄÄRÄ])","v":1500},{"$f":"SUBTOTAL(109,Tiedot[TOTEUTUNUT TYÖMÄÄRÄ])","v":1510},{"$f":"SUBTOTAL(109,Tiedot[ARVIOITU KESTO])","v":190},{"$f":"SUBTOTAL(109,Tiedot[TOTEUTUNUT KESTO])","v":170}]

{"sheet":"PROJEKTIN SUMMAT","index":3,"n_rows":11,"n_cols":16,"rows_kept":11,"merged":[[3,2,3,7],[3,8,3,13],[3,15,14,19]]}
["Laske projektin summat tässä laskentataulukossa. Yrityksen nimi päivitetään automaattisesti oikeanpuoleiseen soluun. Tämän sarakkeen soluissa on hyödyllisiä ohjeita. Aloita siirtymällä nuolella alaspäin.",{"$f":"PROJEKTIPARAMETRIT!B1","v":"Yrityksen nimi"}]
["Tämän laskentataulukon otsikko on solussa oikealla.",{"$f":"PROJEKTIPARAMETRIT!B2","v":"Projektisuunnitelma asianajotoimistoille"}]
["Luottamuksellisuusviesti on solussa oikealla.",{"$f":"PROJEKTIPARAMETRIT!B3","v":"Yrityksen nimi luottamuksellinen"}]
["Arvioitu-selite on solussa C4, Toteutuneet-selite solussa I4 ja Tietovinkki on solussa P4.",null,"ARVIOITU",{"$nulls":5},"TOTEUTUNEET",{"$nulls":6},"TIEDOT: \nTämä pivot-taulukko ei päivity automaattisesti.  Jos haluat päivittää sen, valitse se (mikä tahansa solu pivot-taulukossa), ja valitse sitten valintanauhan välilehdestä PIVOT-TAULUKKOTYÖKALUT | ANALYSOI vaihtoehto Päivitä.  Tai paina näppäinyhdistelmää VAIHTO + F10, valitse pivot-taulukko ja valitse Päivitä."]
["Oikealla olevasta solusta alkava Pivot-taulukko päivittyy automaattisesti.","PROJEKTIN NIMI","YLEINEN KUMPPANI ","YRITYS ","PUOLUSTUKSEN ASIANAJAJA ","IMMATERIAALIOIKEUDET ","KONKURSSI ","JÄRJESTELMÄNVALVOJA (HENKILÖKUNTA) ","YLEINEN KUMPPANI  ","YRITYS  ","PUOLUSTUKSEN ASIANAJAJA  ","KONKURSSI  ","IMMATERIAALIOIKEUDET  ","JÄRJESTELMÄNVALVOJA (HENKILÖKUNTA)  "]
[null,"Projekti 1",{"v":7000,"d":"7,000.00 €"},{"v":20000,"d":"20,000.00 €"},{"v":0,"d":"0.00 €"},{"v":0,"d":"0.00 €"},{"v":0,"d":"0.00 €"},{"v":12500,"d":"12,500.00 €"},{"v":7700,"d":"7,700.00 €"},{"v":22000,"d":"22,000.00 €"},{"v":0,"d":"0.00 €"},{"v":0,"d":"0.00 €"},{"v":0,"d":"0.00 €"},{"v":13750,"d":"13,750.00 €"}]
[null,"Projekti 2",{"v":14000,"d":"14,000.00 €"},{"v":40000,"d":"40,000.00 €"},{"v":0,"d":"0.00 €"},{"v":11000,"d":"11,000.00 €"},{"v":0,"d":"0.00 €"},{"v":20000,"d":"20,000.00 €"},{"v":13650,"d":"13,650.00 €"},{"v":39000,"d":"39,000.00 €"},{"v":0,"d":"0.00 €"},{"v":10725,"d":"10,725.00 €"},{"v":0,"d":"0.00 €"},{"v":19500,"d":"19,500.00 €"}]
[null,"Projekti 3",{"v":35000,"d":"35,000.00 €"},{"v":0,"d":"0.00 €"},{"v":75000,"d":"75,000.00 €"},{"v":0,"d":"0.00 €"},{"v":0,"d":"0.00 €"},{"v":18750,"d":"18,750.00 €"},{"v":35000,"d":"35,000.00 €"},{"v":0,"d":"0.00 €"},{"v":75000,"d":"75,000.00 €"},{"v":0,"d":"0.00 €"},{"v":0,"d":"0.00 €"},{"v":18750,"d":"18,750.00 €"}]
[null,"Projekti 4",{"v":5250,"d":"5,250.00 €"},{"v":0,"d":"0.00 €"},{"v":0,"d":"0.00 €"},{"v":24750,"d":"24,750.00 €"},{"v":0,"d":"0.00 €"},{"v":5625,"d":"5,625.00 €"},{"v":5075,"d":"5,075.00 €"},{"v":0,"d":"0.00 €"},{"v":0,"d":"0.00 €"},{"v":23925,"d":"23,925.00 €"},{"v":0,"d":"0.00 €"},{"v":5437.5,"d":"5,437.50 €"}]
[null,"Projekti 5",{"v":17500,"d":"17,500.00 €"},{"v":6250,"d":"6,250.00 €"},{"v":30000,"d":"30,000.00 €"},{"v":0,"d":"0.00 €"},{"v":0,"d":"0.00 €"},{"v":9375,"d":"9,375.00 €"},{"v":17850,"d":"17,850.00 €"},{"v":6375,"d":"6,375.00 €"},{"v":30600,"d":"30,600.00 €"},{"v":0,"d":"0.00 €"},{"v":0,"d":"0.00 €"},{"v":9562.5,"d":"9,562.50 €"}]
[null,"Kaikki yhteensä",{"v":78750,"d":"78,750.00 €"},{"v":66250,"d":"66,250.00 €"},{"v":105000,"d":"105,000.00 €"},{"v":35750,"d":"35,750.00 €"},{"v":0,"d":"0.00 €"},{"v":66250,"d":"66,250.00 €"},{"v":79275,"d":"79,275.00 €"},{"v":67375,"d":"67,375.00 €"},{"v":105600,"d":"105,600.00 €"},{"v":34650,"d":"34,650.00 €"},{"v":0,"d":"0.00 €"},{"v":67000,"d":"67,000.00 €"}]